Cogmind - Beta 10.2 @@@ ROGUE MODE // 2020.11.29 @ 19:27:03 // Halloween2020/ForbiddenLore Player: Demise Result: Destroyed by L-31 Rogue with Katana Performance ------------- Evolutions (0) 0 Regions Visited (4) 800 Robots Destroyed (28) 140 Value Destroyed (347) 347 Prototype IDs (28) 560 Alien Tech Used (0) 0 Bonus (382) 382 TOTAL SCORE: 2229 Bonus ------- Follower Combat Kills 82 Aligned with FarCom 300 Cogmind --------- Core Integrity 0/250 Matter 273/300 Energy 100/100 System Corruption 0% Temperature Cool (0) Movement Walking (150) Ox1 Location -9/Mines Parts ------- > --- POWER (1) -------- (None) > --- PROPULSION (2) --- Advanced Myomer Leg > --- UTILITY (2) ------ Large Storage Unit High-capacity Storage Unit > --- WEAPON (2) ------- Heavy Assault Rifle 8R-AWN's Boregun > --- INVENTORY (18) --- Improved Heat Sink Large Storage Unit High-capacity Matter Pod (200) Gravity Neutralizing Apparatus Improved Signal Interpreter Improved Terrain Scanner Modified TNC Advanced Weapon Cycler Core Shielding Medium Armor Plating Beamcaster Light Assault Rifle AWS/Gauss AWS/Autocannon Mining Laser Peak State ------------ > --- POWER ------------ (None) > --- PROPULSION ------- Advanced Myomer Leg Advanced Myomer Leg > --- UTILITY ---------- Gravity Neutralizing Apparatus Core Shielding > --- WEAPON ----------- AWS/Gauss > --- INVENTORY -------- Wheel Medium Armor Plating Heavy Assault Rifle [Rating: 39] Favorites ----------- Power Light Ion Engine Engine Light Ion Engine Propulsion Light Treads Treads Light Treads Leg Advanced Myomer Leg Wheel Wheel Utility High-capacity Storage Unit Device Gravity Neutralizing Apparatus Storage High-capacity Storage Unit Protection Core Shielding Weapon Light Assault Rifle Energy Gun Beamcaster Ballistic Gun Light Assault Rifle Launcher Grenade Launcher Special Weapon Mining Laser Build | -11 -10 -10 -10 -9 ------- Run | Scr Mat Min Exi Min Slots Evolved . | . . . . . Power . | . . . . . Propulsion . | . . . . . Utility . | . . . . . Weapon . | . . . . . Parts Attached 47 | 5 8 10 24 . Power 1 | . . 1 . . Engine 1 | . . 1 . . Core . | . . . . . Reactor . | . . . . . Propulsion 10 | 4 1 1 4 . Treads 2 | 1 . . 1 . Leg 2 | . . . 2 . Wheel 6 | 3 1 1 1 . Hover . | . . . . . Flight . | . . . . . Utility 11 | 1 3 . 7 . Device 1 | . . . 1 . Storage 6 | 1 3 . 2 . Processor . | . . . . . Hackware . | . . . . . Protection 4 | . . . 4 . Artifact . | . . . . . Weapon 25 | . 4 8 13 . Energy Gun 2 | . . 1 1 . Energy Cannon . | . . . . . Ballistic Gun 20 | . 3 7 10 . Ballistic Cannon . | . . . . . Launcher 2 | . . . 2 . Special Weapon 1 | . 1 . . . Impact Weapon . | . . . . . Slashing Weapon . | . . . . . Piercing Weapon . | . . . . . Special Melee Weapon . | . . . . . Unidentified Prototypes 3 | . . . 3 . Parts Lost 10 | . . 1 9 . Power 2 | . . 1 1 . Propulsion 2 | . . . 2 . Utility 2 | . . . 2 . Weapon 4 | . . . 4 . Highest Loss Streak 8 | . . 1 8 . Average Slot Usage (%) 96 | . 100 100 92 85 Engine 12 | . 14 14 10 . Treads 16 | . 14 14 19 . Leg 2 | . . . 4 28 Wheel 7 | . 14 14 1 . Storage 21 | . 28 28 15 28 Protection 6 | . . . 12 . Energy Gun 1 | . 1 1 1 . Ballistic Gun 20 | . 24 26 15 28 Launcher 4 | . . . 8 . Naked Turns . | . . . . . Heaviest Build 57 | 13 54 57 57 57 Greatest Support 60 | 20 10 10 60 60 Greatest Overweight (x) 5 | 1 5 5 5 . Average Overweight (x) 2 | . 2 5 2 . Largest Inventory Capacity 18 | 8 18 18 18 18 Average Capacity 13 | 7 13 18 12 18 Most Carried 18 | 8 18 18 18 18 Average Carried 12 | 7 12 17 9 18 Final Capacity 18 | 8 18 18 18 18 Final Carried 18 | 8 18 18 18 18 Class Distribution -------------------- 100% | Mutant Dominant Class ---------------- Mutant | -10/Materials Mutant | -10/Mines Mutant | -10/Exiles Mutant | -9/Mines Resources | -11 -10 -10 -10 -9 ----------- Run | Scr Mat Min Exi Min Matter Collected 1284 | 355 223 195 511 . Remotely . | . . . . . Salvage Created 777 | 235 140 241 119 42 Parts 61 | 22 4 27 5 3 Haulers Intercepted . | . . . . . Recyclers Shooed . | . . . . . Parts Field Recycled . | . . . . . Retrieved Matter . | . . . . . Parts Self-Destructed . | . . . . . Prevented . | . . . . . Kills | -11 -10 -10 -10 -9 ------- Run | Scr Mat Min Exi Min Combat Hostiles Destroyed 25 | . 5 12 7 1 Guns 21 | . 5 12 3 1 AOE 4 | . . . 4 . Classes Destroyed 6 | 3 2 . 1 . Worker 3 | 2 . 1 . . Tunneler 5 | 5 . . . . Recycler 1 | 1 . . . . Swarmer 14 | . 3 11 . . Grunt 4 | . 2 1 . 1 Assembled 6 | . . . 6 . Best Kill Streak 6 | 5 3 3 6 1 Combat Bots Only 6 | . 3 3 6 1 Max Kills in Single Turn 3 | 1 1 2 3 1 Gunslinging . | . . . . . Exploded 3 | . . . 3 . Melee . | . . . . . Uniques/NPCs Destroyed 1 | . . . 1 . 8R-AWN (-10/Exiles) Combat | -11 -10 -10 -10 -9 -------- Run | Scr Mat Min Exi Min Damage Taken 1902 | . 171 307 1349 75 Core 254 | . 22 39 162 31 Absorbed by Shields . | . . . . . Core Remaining (%) 100 | 100 . . . . Volleys Fired 119 | 19 26 28 43 3 Largest 2 | 2 2 2 2 2 Hottest 100 | 60 100 40 46 53 Shots Fired 241 | 38 46 56 95 6 Gun 231 | 38 40 56 91 6 Cannon . | . . . . . Launcher 4 | . . . 4 . Special 6 | . 6 . . . Kinetic 211 | 19 39 56 91 6 Thermal 26 | 19 7 . . . Explosive 4 | . . . 4 . Electromagnetic . | . . . . . Robot Hit Streak 29 | 7 8 12 29 3 Robot Miss Streak 5 | 3 3 5 5 1 Penetration Max 1 | . . . . 1 Secondary Targets 5 | . 1 3 1 . Max Gunslinging Chain 1 | . 1 1 1 . Autonomous 24 | . . . 24 . Shots Hit Robots 152 | 20 21 33 74 4 Core Hits 68 | 12 11 20 23 2 Critical Hits 3 | . . . 2 1 Critical Kills . | . . . . . Critical Parts Destroyed 2 | . . . 1 1 Melee Attacks . | . . . . . Impact . | . . . . . Slashing . | . . . . . Piercing . | . . . . . Sneak Attacks . | . . . . . Combat Hostiles . | . . . . . Follow-up Attacks . | . . . . . Damage Inflicted 2545 | 178 234 320 1748 65 Guns 2292 | 178 234 315 1500 65 Cannons . | . . . . . Explosions 248 | . . . 248 . Melee . | . . . . . Ramming 5 | . . 5 . . Kinetic 2148 | 45 223 315 1500 65 Thermal 144 | 133 11 . . . Explosive 248 | . . . 248 . Electromagnetic . | . . . . . Impact . | . . . . . Slashing . | . . . . . Piercing . | . . . . . Highest Corruption . | . . . . . Average Corruption . | . . . . . Corruption Purged . | . . . . . Overload Shots . | . . . . . Overflow Damage 5 | . . . 5 . Projectiles . | . . . . . Explosions 5 | . . . 5 . Melee . | . . . . . Knockbacks . | . . . . . Impact . | . . . . . Kinetic . | . . . . . Secondary . | . . . . . Self-Inflicted Damage 2 | . . 2 . . Shots . | . . . . . Rammed 1 | . . 1 . . Targets Rammed 1 | . . 1 . . Kicked . | . . . . . Crushed . | . . . . . Highest Temperature 40 | 40 40 . 30 . Average Temperature 17 | 19 16 . 15 . Received Heat Transfer 181 | . 69 6 100 6 Siege Activations . | . . . . . Robots Corrupted . | . . . . . Combat Hostiles . | . . . . . Parts Fried . | . . . . . Impact Corruptions . | . . . . . Robots Melted . | . . . . . Combat Hostiles . | . . . . . Parts Melted . | . . . . . Heat Transferred 325 | 300 25 . . . Parts Sabotaged . | . . . . . Parts Stolen . | . . . . . Parts Stripped . | . . . . . Power Chain Reactions . | . . . . . Missiles Intercepted . | . . . . . Alert | -11 -10 -10 -10 -9 ------- Run | Scr Mat Min Exi Min Peak Influence 212 | 40 147 212 . 35 Initial 57 | . 26 57 . . Average 89 | 25 77 113 . 18 Maximum Alert Level 1 | . . 1 . . Low Security (%) 96 | 100 100 92 . 100 Level 1 3 | . . 7 . . Level 2 . | . . . . . Level 3 . | . . . . . Level 4 . | . . . . . Level 5 . | . . . . . High Security . | . . . . . Max Security . | . . . . . Squads Dispatched 3 | . 2 1 . . Investigation 2 | . 2 . . . Extermination . | . . . . . Reinforcement . | . . . . . Assault 1 | . . 1 . . Garrison . | . . . . . Intercept . | . . . . . Construction Impeded . | . . . . . Haulers Reinforced . | . . . . . Stealth | -11 -10 -10 -10 -9 --------- Run | Scr Mat Min Exi Min Distress Signals 1 | . 1 . . . Communications Jammed . | . . . . . Distress Signals . | . . . . . Times Spotted 47 | . 13 19 13 2 Peak Tracking Total 9 | . 4 4 9 2 Tactical Retreats 3 | . 1 . 2 . Traps | -11 -10 -10 -10 -9 ------- Run | Scr Mat Min Exi Min Traps Triggered 1 | . 1 . . . Indirectly . | . . . . . Trap Hack Attempts . | . . . . . Triggered . | . . . . . Disarmed . | . . . . . Reprogrammed . | . . . . . Reused . | . . . . . Traps Extracted . | . . . . . Installed . | . . . . . Triggered . | . . . . . Exploded 3 | . . . 3 . Machines | -11 -10 -10 -10 -9 ---------- Run | Scr Mat Min Exi Min Machines Disabled 4 | . . . 4 . Max in Single Turn 1 | . . . 1 . Machines Sabotaged . | . . . . . Garrisons Compromised . | . . . . . Overloaded Fab Kills . | . . . . . Fab Network Shutdowns . | . . . . . Hacking | -11 -10 -10 -10 -9 --------- Run | Scr Mat Min Exi Min Machines Accessed 12 | . 10 . 2 . Terminals 7 | . 7 . . . Fabricators . | . . . . . Repair Stations 1 | . 1 . . . Recycling Units 2 | . 2 . . . Scanalyzers . | . . . . . Garrison Access . | . . . . . Total Hacks 32 | . 30 . 2 . Successful 21 | . 19 . 2 . Failed 11 | . 11 . . . Catastrophic . | . . . . . Database Lockouts . | . . . . . Manual 20 | . 19 . 1 . Terminals 20 | . 20 . . . Fabricators . | . . . . . Repair Stations 5 | . 5 . . . Recycling Units 5 | . 5 . . . Scanalyzers . | . . . . . Garrison Access . | . . . . . Terminal Hacks 10 | . 8 . 2 . Record 1 | . . . 1 . Part Schematic 1 | . 1 . . . Robot Analysis 3 | . 3 . . . Prototype ID Bank 1 | . 1 . . . Branch Access Points 1 | . 1 . . . Locate Traps 1 | . 1 . . . Recall Investigation 1 | . 1 . . . EX-Prototype ID Bank 1 | . . . 1 . Fabricator Hacks . | . . . . . Repair Station Hacks 3 | . 3 . . . Scan Component 2 | . 2 . . . Repair 1 | . 1 . . . Recycling Unit Hacks 3 | . 3 . . . Report Inventory 2 | . 2 . . . Retrieve Components 1 | . 1 . . . Scanalyzer . | . . . . . Garrison Access Hacks . | . . . . . Unauthorized Hacks 5 | . 5 . . . Terminals 4 | . 4 . . . Botnet 3 | . 3 . . . Operators 1 | . 1 . . . Fabricators . | . . . . . Repair Stations . | . . . . . Recycling Units 1 | . 1 . . . Tunnel 1 | . 1 . . . Scanalyzers . | . . . . . Garrison Access . | . . . . . Data Cores Recovered . | . . . . . Used . | . . . . . Hacking Detections 9 | . 9 . . . Full Trace Events . | . . . . . Feedback Events . | . . . . . Feedback Blocked . | . . . . . Robot Schematics Acquired . | . . . . . Robots Built . | . . . . . Matter . | . . . . . Time . | . . . . . Total Robot Build Rating . | . . . . . Part Schematics Acquired 1 | . 1 . . . Parts Built . | . . . . . Matter . | . . . . . Time . | . . . . . Total Part Build Rating . | . . . . . Parts Repaired 1 | . 1 . . . Time 13 | . 13 . . . Parts Recycled . | . . . . . Recycled Matter . | . . . . . Retrieved Matter . | . . . . . Retrieved Components 3 | . 3 . . . Parts Scanalyzed . | . . . . . Part Schematics Acquired . | . . . . . Parts Damaged . | . . . . . Bothacking | -11 -10 -10 -10 -9 ------------ Run | Scr Mat Min Exi Min Used RIF Installer . | . . . . . Robots Hacked . | . . . . . Non-combat . | . . . . . Combat . | . . . . . Robot Hacks Applied . | . . . . . Relay Couplers Released . | . . . . . Robots Rewired . | . . . . . Allies Hacked . | . . . . . Hacks Repelled . | . . . . . Allies | -11 -10 -10 -10 -9 -------- Run | Scr Mat Min Exi Min Total Allies 3 | . . 3 . . Largest Group 3 | . . 3 . . Highest-Rated Group 74 | . . 74 . . Highest-Rated Ally 31 | . . 31 . . Total Orders . | . . . . . Ally Attacks 18 | . . 18 . . Total Damage 315 | . . 315 . . Kills 4 | . . 4 . . Allies Corrupted . | . . . . . Allies Melted . | . . . . . Intel | -11 -10 -10 -10 -9 ------- Run | Scr Mat Min Exi Min Robot Analysis Total 3 | . 3 . . . Derelict Logs Recovered 1 | . . 1 . . Drone Launches . | . . . . . Drone Recoveries . | . . . . . Exploration | -11 -10 -10 -10 -9 ------------- Run | Scr Mat Min Exi Min Turns Passed 3578 | 194 692 923 1747 22 Spaces Moved 2186 | 131 541 604 899 11 Core 2 | . . . 2 . Treads 514 | . . . 514 . Legs 254 | 30 . . 213 11 Wheels 1416 | 101 541 604 170 . Hover . | . . . . . Flight . | . . . . . Fastest Speed 90 | 90 90 130 90 120 Average Speed 136 | 96 103 130 167 120 Slowest Speed 300 | 120 130 130 300 120 Overloaded Moves . | . . . . . Propulsion Burnouts . | . . . . . Robots Hopped . | . . . . . Cave-ins Triggered . | . . . . . Exploration Rate (%) 54 | 5 90 98 70 8 Regions Visited 4 Branch Regions 3 Pre-discovered Areas 3 | . 1 1 1 . Known Exits Taken 1 | . 1 . . . Unknown Exits Taken 3 | 1 . 1 1 . Scrap Searched 1 | . . 1 . . Spaces Dug 9 | . 3 . 6 . Terrain Destroyed 40 | . 4 . 35 1 Melee . | . . . . . Projectile 21 | . 4 . 16 1 AOE 19 | . . . 19 . Terrain Rammed . | . . . . . Walls Destroyed . | . . . . . Machines Disabled . | . . . . . Actions | -11 -10 -10 -10 -9 --------- Run | Scr Mat Min Exi Min Total 2594 | 174 625 699 1082 14 Wait 117 | . 16 47 54 . Move 2182 | 130 540 603 898 11 Hop . | . . . . . Pick Up 55 | 10 19 1 25 . Fast Attach 11 | 1 . 1 9 . Attach 15 | 2 1 1 11 . Detach 9 | . . . 9 . Swap 21 | 2 7 8 4 . Drop 60 | 10 12 9 29 . Fire 119 | 19 26 28 43 3 Melee . | . . . . . Ram 1 | . . 1 . . Kick . | . . . . . Crush . | . . . . . Escape Stasis . | . . . . . Rewire 4 | . 4 . . . Trap . | . . . . . Miscellaneous . | . . . . . Route ------- -11/Scrapyard -10/Materials (discovered 4 exits: [*Mat x3] / *Min) -10/Mines (discovered 3 exits: [*Mat x2] / *Exi) -10/Exiles -9/Mines History --------- Turn | Location | Event 21 | -11/Scrapyard | Discovered new exit (range 3) 195 | -11/Scrapyard | Entered Materials 323 | -10/Materials | Build established: Mutant 338 | -10/Materials | Discovered new exit (range 13) 355 | -10/Materials | Identified exit to Mines 424 | -10/Materials | Discovered new exit (range 12) 757 | -10/Materials | Repaired Grenade Launcher 822 | -10/Materials | Discovered new exit (range 12) 887 | -10/Materials | Entered Mines 1158 | -10/Mines | Discovered new exit (range 9) 1271 | -10/Mines | Deemed a non-threat by the Exiles lab entrance 1271 | -10/Mines | Discovered new exit (range 5) 1397 | -10/Mines | Met a Derelict testing a Signal Generator 1694 | -10/Mines | Learned location of Storage (-7) 1696 | -10/Mines | Discovered new exit (range 7) 1810 | -10/Mines | Entered Exiles 1843 | -10/Exiles | Met 8R-AWN 1864 | -10/Exiles | Met EX-HEX 1932 | -10/Exiles | Met EX-DEC 1955 | -10/Exiles | Learned location of Zion (-6) 2020 | -10/Exiles | Discovered new exit (range 11) 2364 | -10/Exiles | Met EX-BIN 2386 | -10/Exiles | Aligned with FarCom system 2388 | -10/Exiles | Given EX-Vault access code 2434 | -10/Exiles | Opened EX-Vault 2450 | -10/Exiles | Found AWS/Autocannon 2455 | -10/Exiles | Found Modified TNC 2464 | -10/Exiles | Found AWS/Gauss 2505 | -10/Exiles | Warned to stay clear of 0b10 Research branches 3041 | -10/Exiles | Attacked by the Exiles 3148 | -10/Exiles | Core integrity fell below 50% 3222 | -10/Exiles | Core integrity fell below 20% 3235 | -10/Exiles | Lost 8 parts (1p2n2u3w) 3249 | -10/Exiles | Destroyed 8R-AWN 3268 | -10/Exiles | Found Prototype Ballistic Gun 3462 | -10/Exiles | Identified 8R-AWN's Boregun 3557 | -10/Exiles | Stole three prototypes: Modified TNC, AWS/Gauss, AWS/Autocannon 3557 | -10/Exiles | Entered Mines 3579 | -9/Mines | Destroyed by L-31 Rogue with Katana Last Messages --------------- 03434_ Acquired Beamcaster. To regain energy, simply wait via the mouse wheel '.', or KP5. Also make sure your per-turn energy generation is a net positive, and consider deactivating power-draining parts if not. 03456_ Acquired Imp. Signal Interpreter. 03458_ Acquired Imp. Terrain Scanner. 03462_ Identified 8R-AWN's Boregun. 03488_ Acquired 1 matter. 03489_ Acquired 8 matter. 03525_ Extracted 43 matter. LOCATION=UNKNOWN GOAL=ESCAPE 03571_ HV Slug penetrates Wall. 03574_ HV Slug penetrates L-31 Rogue. 03574_ L-31 Rogue suffers critical hit. 03574_ Destroyed Imp. Aluminum Leg. 03574_ HV Slug penetrates G-34 Mercenary. 03574_ G-34 Mercenary destroyed. 03577_ HV Slug penetrates Wall. 03577_ Adv. Myomer Leg severed. Map ----- +----------------------------------------------------+ | ?????????????????????????????????????? | | ?????????????????????????????????????? | | ?????????????????????????????????????? | | ?????????????????????????????????????? | | ?????????????????????????????????????? | | ?????????????????????????????????????? | | ?????????????????????????????????????? | | ???????? ####????????????????????????? | | ???????? ##?##????????????????????? | | ???????? ## ??????????????????? | | ???????? ??????????????????? | | ???????? ?????????????????? | | ???????? ?????????????????? | | ???????? ???????????????????? | | ???##### ????????????????????? | | ??## #?????????????????????? | | ??# #??????????????????????? | | ??# #??????????????????????? | | ??# #???????????????????????? | | ???# #?????????????????????????? | | ????# #??????????????????????????? | | ????# ##????####??????????????????? | | ????# ##????? ???????????????????? | | ????# ##????? ????????????????????? | | ????# =####### #?????????????????????? | | ????# !%* l@ #?????????????????????? | | ????########;###?????????????????????? | | ???????????##????????????????????????? | | ?????????????????????????????????????? | | ?????????????????????????????????????? | | ?????????????????????????????????????? | | ?????????????????????????????????????? | | ?????????????????????????????????????? | | ?????????????????????????????????????? | | ?????????????????????????????????????? | | ?????????????????????????????????????? | | ?????????????????????????????????????? | | | | | | | | | | | | | | | | | | | | | | | | | | | +----------------------------------------------------+ Best States ------------- Heat Dissipation 25 Energy Generation 10 Energy Capacity 125 Matter Stores 300 Matter Capacity 300 Sight Range 16 Terrain Scan Density 10 Additional Mass Support 12 Armor Coverage 225 Core Shielding 20 Evasion (%) 42 Recoil Reduction 2 Item Schematics ----------------- Hcp. Storage Unit | -10/Materials | Hacked Robot Schematics ------------------ None Fabricated ------------ Nothing Alien Tech Used ----------------- None Achievements -------------- None Challenges ------------ None Game ------ Seed HeartRecyclingPurifier Manual? 0 Play Time 00:29:29 Cumulative 94.4 hours Start 2020.11.29 @ 18:57:18 End 2020.11.29 @ 19:27:03 Sessions 1 Manual Loads 0 Difficulty Rogue Special Mode Halloween2020/ForbiddenLore Game No. 85 Rogue 85 Adventurer 0 Explorer 0 Win Type - Total 0 Types 0/0/0/0/0/0/0/0/0 Lore% 48 Gallery% 56 Achievement% 52 Wizard Run 0 Options --------- ASCII 0 Keyboard 1 Movement Numpad Keybinds 0 Fullscreen 1 Font 12/Terminus Map View 83x54 Tactical HUD 1 Map Filters NONE Filters NONE Steam 1 RUN: 0d38e094-65f9-484e-be39-5da91902dea3